bitfinex/quotes_SOLUSD_20250821
["timestamp","ask_amount","ask_price","bid_price","bid_amount"]
[1755815484641,42.12,182.13,182.12,26.03]
[1755815485029,42.12,182.13,182.12,43.242095]
[1755815487424,0.06,182.14,182.12,51.86469476]
[1755815487631,42.18,182.14,182.12,51.16469476]
[1755815487955,42.18,182.14,182.13,0.7]
[1755815488124,42.18,182.14,182.13,17.210278]
[1755815490448,0.06,182.14,182.13,17.210278]
[1755815498650,0.06,182.14,182.13,22.70086164]
[1755815500554,0.06,182.14,182.13,17.210278]
[1755815500738,0.06,182.14,182.13,17.240278]
[1755815508467,0.06,182.14,182.13,22.73086164]
[1755815509259,0.06,182.14,182.13,17.240278]
[1755815517571,0.06,182.14,182.13,22.73086164]
[1755815519876,0.06,182.14,182.13,17.240278]
[1755815521170,0.06,182.14,182.13,22.73086164]
[1755815522446,0.06,182.14,182.13,17.240278]
[1755815523584,0.06,182.14,182.13,16.540278]
[1755815526471,0.06,182.14,182.13,17.250278]
[1755815526779,0.06,182.14,182.13,16.540278]
[1755815529361,0.06,182.14,182.13,17.250278]
[1755815532386,0.06,182.14,182.13,22.74086164]
[1755815533385,0.06,182.14,182.13,17.250278]
[1755815535185,0.06,182.14,182.13,22.74086164]
[1755815543598,0.06,182.14,182.13,22.03086164]
[1755815543769,0.06,182.14,182.13,22.70086164]
[1755815549203,0.06,182.16,182.15,26.0]
[1755815549393,0.06,182.16,182.15,42.72730864]
[1755815549701,0.06,182.16,182.15,26.0]
[1755815550007,0.06,182.16,182.15,28.201007]
[1755815550216,0.06,182.16,182.15,28.871007]
[1755815550712,0.06,182.16,182.15,34.36098778]
[1755815550917,0.06,182.16,182.15,8.36098778]
[1755815553115,0.06,182.16,182.15,34.36098778]
[1755815553315,0.06,182.16,182.15,8.36098778]
[1755815553685,0.06,182.16,182.15,7.69098778]
[1755815554108,0.06,182.16,182.15,33.69098778]
[1755815554405,0.06,182.16,182.15,34.36098778]
[1755815554609,0.06,182.16,182.15,8.36098778]
[1755815556616,0.06,182.16,182.15,7.69098778]
[1755815556792,0.06,182.16,182.15,8.36098778]
[1755815559611,0.06,182.16,182.15,34.36098778]
[1755815560019,0.06,182.16,182.15,8.36098778]
[1755815560222,0.06,182.16,182.15,34.36098778]
[1755815560417,0.06,182.16,182.15,8.36098778]
[1755815566331,0.06,182.16,182.15,34.36098778]
[1755815566528,0.06,182.16,182.15,11.49270241]
[1755815567446,0.06,182.16,182.15,37.49270241]
[1755815567829,0.06,182.16,182.15,11.49270241]
[1755815570645,0.06,182.16,182.15,34.36098778]
[1755815570853,0.06,182.16,182.15,8.36098778]
[1755815572851,0.06,182.16,182.15,34.36098778]
[1755815573155,0.06,182.16,182.15,8.36098778]
[1755815574250,0.06,182.16,182.15,2.201007]
[1755815574427,0.75,182.16,182.15,28.201007]
[1755815579830,3.88171463,182.16,182.15,2.201007]
[1755815580134,7.58795246,182.16,182.15,2.201007]
[1755815580457,140.2722756,182.16,182.15,2.201007]
[1755815582347,182.3322756,182.16,182.15,2.201007]
[1755815583571,0.28432314,182.15,182.14,0.03]
[1755815583746,7.8122756,182.15,182.14,0.03]
[1755815584239,7.8122756,182.15,182.14,2.231976]
[1755815587037,7.8122756,182.15,182.14,0.03]
[1755815591479,21.40786961,182.15,182.14,0.03]
[1755815593349,13.87991715,182.14,182.13,0.03]
[1755815593576,63.54786961,182.14,182.13,0.03]
[1755815596378,3.41603777,182.13,182.11,0.03]
[1755815596679,45.55603777,182.12,182.11,0.03]
[1755815596873,49.9622756,182.12,182.11,0.03]
[1755815598087,13.87991715,182.11,182.08,0.03]
[1755815598299,3.13171463,182.09,182.08,0.03]
[1755815598466,20.71786961,182.09,182.08,0.03]
[1755815598662,21.41786961,182.09,182.08,0.03]
[1755815598876,33.94472813,182.09,182.08,0.03]
[1755815599386,33.94472813,182.09,182.07,0.03]
[1755815599387,13.87991715,182.08,182.07,0.03]
[1755815599562,72.3584903,182.08,182.07,0.03]
[1755815600077,76.69049151,182.08,182.07,0.03]
[1755815600264,80.37746839,182.08,182.07,0.03]
[1755815600466,76.69049151,182.08,182.07,0.03]
[1755815601293,13.87991715,182.06,182.05,0.03]
[1755815601477,13.87991715,182.06,182.0,0.69]
[1755815601478,62.81708284,182.06,182.0,2.893674]
[1755815601681,3.41603777,182.03,182.0,2.233674]
[1755815601895,45.61603777,182.03,182.0,2.233674]
[1755815602091,46.31603777,182.03,182.0,2.233674]
[1755815602260,59.91163178,182.03,182.0,0.03]
[1755815602592,59.21163178,182.03,182.0,2.263674]
[1755815602808,45.61603777,182.03,182.02,0.69]
[1755815602971,45.63603777,182.03,182.02,0.69]
[1755815603688,45.35171463,182.03,182.02,0.69]
[1755815608299,45.35171463,182.03,182.02,17.214828]
[1755815610181,45.63603777,182.03,182.02,0.03]
[1755815610394,46.33603777,182.03,182.02,0.03]
[1755815610592,45.63603777,182.03,182.02,0.03]
[1755815611180,46.33603777,182.03,182.02,0.03]
[1755815611589,59.93163178,182.03,182.02,0.03]
[1755815614382,3.41603777,182.03,182.02,0.03]
[1755815614590,45.35171463,182.03,182.02,0.69]
[1755815614981,45.63603777,182.03,182.02,0.69]
[1755815615379,45.63603777,182.03,182.02,17.215739]
[1755815615595,45.63603777,182.03,182.02,16.555739]
[1755815615796,42.50432314,182.03,182.02,0.03]
[1755815616001,45.63603777,182.03,182.02,0.03]
[1755815616503,3.41603777,182.03,182.02,0.03]
[1755815616702,45.67603777,182.03,182.02,0.03]
[1755815617088,46.37603777,182.03,182.02,0.03]
[1755815617286,46.37603777,182.03,182.0,0.03]
[1755815617287,69.97163178,182.03,182.0,0.03]
[1755815617502,0.28432314,182.0,181.98,0.03]
[1755815617702,0.28432314,182.0,181.94,17.192114]
[1755815617703,13.87991715,181.98,181.94,0.66]
[1755815617897,3.41603777,181.95,181.94,0.66]
[1755815618101,45.53171463,181.95,181.94,26.0]
[1755815618625,45.53171463,181.95,181.94,26.66]
[1755815618789,45.53171463,181.95,181.94,0.66]
[1755815618995,45.53171463,181.95,181.94,26.66]
[1755815620394,47.30696025,181.95,181.94,26.66]
[1755815622502,47.30696025,181.95,181.94,26.0]
[1755815623597,47.57128339,181.95,181.94,26.0]
[1755815624221,48.27128339,181.95,181.94,26.0]
[1755815625113,47.57128339,181.95,181.92,16.533025]
[1755815625316,43.36432314,181.95,181.94,26.0]
[1755815626422,48.27128339,181.95,181.94,26.0]
[1755815627611,48.27128339,181.95,181.91,17.194847]
[1755815627612,48.27128339,181.95,181.91,42.534847]
[1755815627818,4.90696025,181.92,181.91,43.194847]
[1755815628000,47.40696025,181.92,181.91,43.194847]
[1755815628200,47.40696025,181.92,181.91,26.66]
[1755815630025,47.69128339,181.92,181.91,26.0]
[1755815632818,0.28432314,181.91,181.89,17.19667]
[1755815633020,47.40696025,181.9,181.89,17.19667]
[1755815633218,47.40696025,181.9,181.89,17.22667]
[1755815633420,47.40696025,181.9,181.89,0.03]
[1755815633724,47.69128339,181.9,181.89,0.03]
[1755815634231,47.69128339,181.9,181.89,26.03]
[1755815634748,47.69128339,181.9,181.89,26.69]
[1755815635835,47.69128339,181.9,181.89,0.69]
[1755815636350,47.67128339,181.9,181.89,0.69]
[1755815636644,47.38696025,181.9,181.89,0.69]
[1755815637054,47.38696025,181.9,181.89,17.227581]
[1755815637608,4.90696025,181.9,181.89,17.227581]
[1755815637815,47.40696025,181.9,181.89,17.227581]
[1755815639750,47.40696025,181.9,181.89,0.69]
[1755815644012,42.5,181.9,181.89,0.69]
[1755815644332,45.64209699,181.9,181.89,0.69]
[1755815647231,45.64209699,181.9,181.89,0.03]
[1755815647547,45.64209699,181.9,181.89,26.69]
[1755815648229,45.64209699,181.9,181.89,0.69]
[1755815650246,3.14209699,181.9,181.89,26.69]
[1755815650433,42.42,181.9,181.89,0.69]
[1755815650634,42.42,181.9,181.89,17.224847]
[1755815650835,45.56209699,181.9,181.89,17.224847]
[1755815652945,0.68,181.94,181.92,26.0]
[1755815653133,45.54209699,181.93,181.92,26.0]
[1755815653331,49.23621133,181.93,181.92,26.0]
[1755815655944,49.23621133,181.93,181.9,0.66]
[1755815656234,3.14209699,181.91,181.9,43.194847]
[1755815656434,45.54209699,181.91,181.9,43.194847]
[1755815656843,42.4,181.91,181.9,43.194847]
[1755815657048,45.54209699,181.91,181.9,43.194847]
[1755815659639,45.54209699,181.91,181.9,42.534847]
[1755815659840,63.82561431,181.91,181.89,0.03]
[1755815660161,152.51444301,181.9,181.89,0.03]
[1755815660727,33.99436016,181.9,181.89,0.03]
[1755815662360,28.10793595,181.9,181.89,0.03]
[1755815662545,4.91203037,181.88,181.87,0.03]
[1755815662745,50.99598843,181.88,181.87,0.03]
[1755815662951,51.69598843,181.88,181.87,0.03]
[1755815663149,56.04698065,181.88,181.87,0.03]
[1755815665265,69.9268978,181.88,181.87,0.03]
[1755815667544,13.87991715,181.87,181.86,0.03]
[1755815667761,23.19590558,181.87,181.86,0.03]
[1755815668279,65.59590558,181.87,181.86,0.03]
[1755815669140,23.19590558,181.87,181.86,0.03]
[1755815669437,65.61590558,181.87,181.86,0.03]
[1755815670562,22.49590558,181.87,181.86,0.72]
[1755815670864,51.32031157,181.87,181.86,0.72]
[1755815672059,46.4082812,181.87,181.86,0.72]
[1755815672264,51.32031157,181.87,181.86,0.72]
[1755815676347,51.03598843,181.87,181.86,26.72]
[1755815678754,46.12395806,181.87,181.86,26.72]
[1755815678963,51.03598843,181.87,181.86,26.72]
[1755815681074,51.03598843,181.87,181.86,0.72]
[1755815681443,51.03598843,181.87,181.86,17.258494]
[1755815682371,45.56275796,181.87,181.86,17.258494]
[1755815682875,49.26492454,181.87,181.86,0.72]
[1755815683075,49.26492454,181.87,181.86,26.72]
[1755815684360,49.26492454,181.87,181.86,26.03]
[1755815685376,46.12216658,181.87,181.86,26.03]
[1755815685672,49.26492454,181.87,181.86,26.72]
[1755815692160,49.26492454,181.87,181.86,26.03]
[1755815692358,49.26492454,181.87,181.86,26.73]
[1755815693981,49.26492454,181.87,181.86,0.73]
[1755815694182,49.26492454,181.87,181.86,26.73]
[1755815695386,7.12924768,181.87,181.86,26.03]
[1755815695582,45.7870811,181.87,181.86,26.03]
[1755815695790,49.48924768,181.87,181.86,26.03]
[1755815695957,50.20924768,181.87,181.86,0.03]
[1755815696266,50.20924768,181.87,181.86,26.03]
[1755815696584,50.20924768,181.87,181.86,0.03]
[1755815699579,49.48924768,181.87,181.86,0.03]
[1755815699887,49.54924768,181.87,181.86,0.03]
[1755815702187,50.26924768,181.87,181.86,0.03]
[1755815703586,49.54924768,181.87,181.86,0.03]
[1755815704392,53.6767551,181.87,181.86,0.03]
[1755815704967,50.53399714,181.87,181.86,0.03]
[1755815705166,53.6767551,181.87,181.86,0.03]
[1755815705593,11.3167551,181.87,181.86,0.03]
[1755815705777,53.6967551,181.87,181.86,0.03]
[1755815707469,53.69775712,181.87,181.86,0.03]
[1755815708100,11.31775712,181.87,181.86,0.03]
[1755815708286,53.69775712,181.87,181.86,0.03]
[1755815710403,49.60924768,181.87,181.86,0.03]
[1755815710587,53.73774604,181.87,181.86,0.03]
[1755815711082,53.73778537,181.87,181.86,0.03]
[1755815711287,53.71778537,181.87,181.86,0.03]
[1755815711787,53.43346223,181.87,181.86,0.73]
[1755815711988,50.29070427,181.87,181.86,0.73]
[1755815712192,53.43346223,181.87,181.86,0.73]
[1755815712502,49.30492454,181.87,181.86,17.269405]
[1755815714197,46.18216658,181.87,181.86,17.269405]
[1755815714395,49.32492454,181.87,181.86,17.269405]
[1755815714573,49.30492454,181.87,181.86,17.269405]
[1755815718690,49.30492454,181.87,181.86,43.269405]
[1755815720889,46.16216658,181.87,181.86,43.269405]
[1755815721095,49.30492454,181.87,181.86,43.269405]
[1755815749532,54.15379787,181.87,181.86,42.569405]
[1755815751437,53.43379787,181.87,181.86,42.569405]
[1755815754545,53.43379787,181.87,181.86,43.229405]
[1755815757045,49.30492454,181.87,181.86,43.229405]
[1755815757350,50.29341964,181.87,181.86,43.229405]
[1755815757555,53.43618801,181.87,181.86,43.229405]
[1755815759762,49.30492454,181.87,181.86,43.229405]
[1755815759936,49.30492454,181.87,181.86,26.69]
[1755815762739,46.16216658,181.87,181.86,26.69]
[1755815762939,49.30492454,181.87,181.86,26.69]
[1755815766657,49.30492454,181.87,181.86,26.03]
[1755815767250,49.30492454,181.87,181.86,26.69]
[1755815771076,53.43598659,181.87,181.86,26.69]
[1755815773852,53.43598659,181.87,181.86,0.69]
[1755815774674,53.43600189,181.87,181.86,0.69]
[1755815775162,53.43602728,181.87,181.86,0.69]
[1755815775763,49.30492454,181.87,181.86,0.69]
[1755815776182,53.43603925,181.87,181.86,0.69]
[1755815777579,53.43603925,181.87,181.86,0.03]
[1755815777765,53.43603925,181.87,181.86,0.7]
[1755815778176,11.03603925,181.87,181.86,0.7]
[1755815778480,53.27603925,181.87,181.86,0.7]
[1755815779383,11.03603925,181.87,181.86,0.7]
[1755815779567,53.27603925,181.87,181.86,0.7]
[1755815783995,50.1334517,181.87,181.86,0.7]
[1755815784176,57.40749478,181.87,181.86,0.7]
[1755815784360,57.40749478,181.87,181.86,0.03]
[1755815784868,57.40749478,181.87,181.86,0.7]
[1755815786789,57.40749478,181.87,181.86,0.03]
[1755815786989,62.70235967,181.87,181.86,0.03]
[1755815788979,58.09749478,181.87,181.86,0.03]
[1755815789178,62.7442134,181.87,181.86,0.03]
[1755815792705,58.61292828,181.87,181.86,0.03]
[1755815792906,62.74199712,181.87,181.86,0.03]
[1755815793213,19.81199712,181.87,181.86,0.03]
[1755815793382,53.25620966,181.87,181.86,0.7]
[1755815796107,49.55404308,181.87,181.86,0.03]
[1755815796285,53.26953511,181.87,181.86,0.7]
[1755815802025,50.12677715,181.87,181.86,0.7]
[1755815802227,53.26953511,181.87,181.86,0.7]
[1755815809732,50.12677715,181.87,181.86,0.7]
[1755815809930,50.12677715,181.87,181.86,2.965254]
[1755815810134,53.26953511,181.87,181.86,28.965254]
[1755815821873,49.55404308,181.87,181.86,28.965254]
[1755815822750,53.26667103,181.87,181.86,28.965254]
[1755815824366,49.55404308,181.87,181.86,28.965254]
[1755815827172,49.55404308,181.87,181.86,28.295254]
[1755815827373,49.55404308,181.87,181.86,29.015254]
[1755815828447,46.41128512,181.87,181.86,29.015254]
[1755815828873,4.19128512,181.87,181.86,3.015254]
[1755815829173,46.41128512,181.87,181.86,3.015254]
[1755815829781,46.41128512,181.87,181.86,29.015254]
[1755815832177,46.41128512,181.87,181.86,3.015254]
[1755815833273,46.41128512,181.87,181.86,29.015254]
[1755815840754,46.39128512,181.87,181.86,29.015254]
[1755815845391,46.39128512,181.87,181.86,2.295254]
[1755815845598,46.39128512,181.87,181.86,28.955254]
[1755815855106,46.39128512,181.87,181.86,28.295254]
[1755815855313,46.39128512,181.87,181.86,28.955254]
[1755815858885,46.39128512,181.87,181.86,28.295254]
[1755815859091,46.39128512,181.87,181.86,28.955254]
[1755815865006,4.19128512,181.87,181.86,28.955254]
[1755815865210,46.37128512,181.87,181.86,28.955254]
[1755815865696,46.37128512,181.87,181.86,2.955254]
[1755815873223,46.37128512,181.87,181.86,2.295254]
[1755815873717,46.37128512,181.87,181.86,2.955254]
[1755815874020,46.37128512,181.87,181.86,2.295254]
[1755815874526,46.37128512,181.87,181.86,28.295254]
[1755815881733,46.37128512,181.87,181.86,28.955254]
[1755815883729,46.37128512,181.87,181.86,28.295254]
[1755815884235,46.37128512,181.87,181.86,28.955254]
[1755815888633,46.37128512,181.87,181.86,28.295254]
[1755815888842,46.37128512,181.87,181.86,28.955254]
[1755815891325,47.07128512,181.87,181.86,2.295254]
[1755815891656,53.93211923,181.87,181.86,2.295254]
[1755815891938,0.28432314,181.86,181.85,0.03]
[1755815892142,0.28432314,181.86,181.84,0.03]
[1755815892143,15.92156066,181.86,181.83,0.2]
[1755815892341,59.96687913,181.87,181.82,2.325254]
[1755815892342,3.14275796,181.83,181.82,2.325254]
[1755815892638,49.38083411,181.83,181.82,0.03]
[1755815892828,49.38083411,181.83,181.82,26.03]
[1755815900443,45.66275796,181.83,181.82,26.03]
[1755815902737,45.66275796,181.83,181.82,0.03]
[1755815906052,45.9470811,181.83,181.82,0.03]
[1755815907242,59.54267511,181.83,181.82,0.03]
[1755815908057,63.23901478,181.83,181.82,0.03]
[1755815908364,59.54267511,181.83,181.82,0.03]
[1755815909063,63.23845406,181.83,181.82,0.03]
[1755815912172,63.29845406,181.83,181.82,0.03]
[1755815914645,75.8694859,181.83,181.82,0.03]
[1755815915882,63.29845406,181.83,181.82,0.03]
[1755815918686,3.20275796,181.83,181.82,0.7]
[1755815918898,45.6670811,181.83,181.82,0.7]
[1755815919054,45.38275796,181.83,181.82,0.7]
[1755815922576,0.06,181.83,181.82,0.7]
[1755815922761,45.38275796,181.83,181.82,0.7]
[1755815924073,42.24,181.83,181.82,0.7]
[1755815927582,42.24,181.83,181.82,26.7]
[1755815927784,42.24,181.83,181.82,43.241229]
[1755815928461,45.38275796,181.83,181.82,43.241229]
[1755815931585,42.24,181.83,181.82,43.241229]
[1755815940173,42.24,181.83,181.82,0.7]
[1755815942089,42.24,181.83,181.82,26.7]
[1755815942290,45.72275796,181.83,181.82,0.03]
[1755815942488,13.87991715,181.82,181.78,0.03]
[1755815942798,3.14275796,181.79,181.78,0.03]
[1755815943006,45.30275796,181.79,181.78,0.03]
[1755815943314,45.61275796,181.79,181.78,0.03]
[1755815944511,42.16,181.79,181.78,0.71]
[1755815945832,3.14275796,181.8,181.78,0.71]
[1755815946015,42.16,181.79,181.78,26.71]
[1755815948800,47.07409465,181.79,181.78,26.71]
[1755815949200,4.91409465,181.79,181.78,26.71]
[1755815949404,47.07409465,181.79,181.78,26.71]
[1755815951033,42.16,181.79,181.78,26.71]
[1755815951328,4.91409465,181.79,181.78,26.71]
[1755815951623,47.07409465,181.79,181.78,26.71]
[1755815952312,4.91409465,181.79,181.78,26.71]
[1755815952496,47.07409465,181.79,181.78,26.71]
[1755815953424,0.06,181.83,181.78,26.71]
[1755815953724,42.47,181.82,181.8,26.0]
[1755815953930,4.91409465,181.81,181.8,26.0]
[1755815954503,0.28432314,181.8,181.78,0.03]
[1755815954709,47.07409465,181.79,181.78,0.03]
[1755815954904,47.66841779,181.79,181.78,0.03]
[1755815955239,13.87991715,181.78,181.74,0.03]
[1755815955412,4.91409465,181.75,181.74,0.03]
[1755815955613,47.13409465,181.75,181.74,0.03]
[1755815955823,47.69841779,181.75,181.74,0.03]
[1755815956006,47.69841779,181.75,181.67,0.2]
[1755815956007,13.87991715,181.74,181.67,0.2]
[1755815956218,4.91409465,181.68,181.67,0.2]
[1755815956428,3.70311737,181.72,181.67,0.2]
[1755815956615,4.91409465,181.69,181.68,26.68]
[1755815956818,42.26,181.69,181.68,26.66]
[1755815957532,4.91409465,181.71,181.69,26.0]
[1755815957825,4.91409465,181.71,181.69,26.66]
[1755815957826,42.26,181.7,181.69,26.66]
[1755815958031,42.26,181.7,181.69,26.0]
[1755815958548,42.26,181.7,181.69,26.66]
[1755815958549,47.17409465,181.7,181.69,26.66]
[1755815959136,47.17409465,181.7,181.69,0.66]
[1755815959317,47.45409465,181.7,181.68,26.0]
[1755815959639,4.91409465,181.69,181.67,0.2]
[1755815959826,47.17409465,181.68,181.67,26.2]
[1755815961236,47.17409465,181.68,181.67,0.2]
[1755815961624,47.17409465,181.68,181.67,0.86]
[1755815961823,0.28,181.76,181.67,6.36448615]
[1755815962134,4.91409465,181.72,181.68,0.66]
[1755815962335,42.26,181.71,181.68,0.66]
[1755815962710,42.26,181.71,181.7,26.0]
[1755815962937,137.31409465,181.75,181.7,5.57409465]
[1755815963145,42.26,181.74,181.7,10.41747238]
[1755815963343,132.4,181.75,181.74,26.0]
[1755815963558,42.26,181.75,181.74,31.57409465]
[1755815964023,39.68,181.8,181.74,31.57409465]
[1755815964222,4.91409465,181.78,181.75,0.66]
[1755815964462,42.28,181.77,181.75,0.66]
[1755815965324,42.28,181.77,181.74,5.50231776]
[1755815965552,42.28,181.77,181.76,0.66]
[1755815965853,4.91409465,181.78,181.76,0.66]
[1755815966062,42.28,181.77,181.74,5.50231776]
[1755815966434,39.68,181.8,181.77,26.0]
[1755815966641,42.3,181.79,181.78,26.66]
[1755815967340,47.21409465,181.79,181.78,26.66]
[1755815968834,42.3,181.79,181.78,0.66]
[1755815969718,42.3,181.79,181.78,26.66]
[1755815971237,42.3,181.79,181.78,26.0]
[1755815971238,47.21409465,181.79,181.78,26.0]
[1755815971437,47.21409465,181.79,181.76,26.0]
[1755815971750,4.91409465,181.78,181.76,26.0]
[1755815971951,42.3,181.77,181.76,26.66]
[1755815972125,47.21409465,181.77,181.75,26.0]
[1755815972324,47.21409465,181.77,181.75,26.66]
[1755815972539,4.91409465,181.76,181.75,26.66]
[1755815972724,4.91409465,181.76,181.74,26.0]
[1755815972938,47.21409465,181.75,181.72,17.20579]
[1755815973245,4.91409465,181.73,181.72,0.66]
[1755815973448,4.91409465,181.73,181.72,26.66]
[1755815973634,47.21409465,181.74,181.72,26.66]
[1755815975265,47.21409465,181.74,181.73,26.0]
[1755815975742,47.21409465,181.74,181.72,26.0]
[1755815976326,47.21409465,181.74,181.72,26.66]
[1755815976934,132.68,181.78,181.73,26.66]
[1755815976935,4.91409465,181.76,181.73,26.66]
[1755815977150,47.23409465,181.75,181.74,0.66]
[1755815977328,47.23409465,181.75,181.73,26.66]
[1755815977833,47.23409465,181.75,181.74,0.66]
[1755815978459,47.23409465,181.75,181.72,26.0]
[1755815978631,47.23409465,181.75,181.73,0.66]
[1755815979033,42.32,181.75,181.74,0.66]
[1755815979254,47.23409465,181.75,181.74,0.66]
[1755815979859,42.32,181.75,181.74,0.66]
[1755815981141,42.32,181.75,181.72,26.66]
[1755815981463,42.32,181.75,181.73,0.66]
[1755815982161,42.32,181.75,181.74,0.66]
[1755815982660,42.32,181.75,181.73,0.66]
[1755815982954,42.32,181.75,181.74,0.66]
[1755815983356,42.32,181.75,181.7,52.99519218]
[1755815983669,42.32,181.75,181.72,0.66]
[1755815984845,42.32,181.75,181.7,42.577615]
[1755815985050,42.32,181.75,181.73,0.66]
[1755815985534,42.32,181.75,181.71,0.66]
[1755815985741,4.91409465,181.74,181.72,26.0]
[1755815985935,42.28,181.73,181.72,26.0]
[1755815986562,42.28,181.73,181.72,26.66]
[1755815988261,42.28,181.73,181.72,0.66]
[1755815988465,42.28,181.73,181.72,31.57409465]
[1755815988769,42.28,181.74,181.72,31.57409465]
[1755815988971,42.28,181.74,181.73,0.71]
[1755815989344,132.4,181.78,181.76,26.0]
[1755815989547,42.28,181.77,181.76,26.0]
[1755815989968,42.28,181.77,181.76,26.71]
[1755815992369,42.28,181.77,181.76,26.0]
[1755815992561,47.47409465,181.77,181.76,26.0]
[1755815992966,47.47409465,181.77,181.7,17.288528]
[1755815993174,4.91409465,181.74,181.73,26.0]
[1755815993478,47.17409465,181.74,181.73,26.0]
[1755815994361,42.26,181.74,181.73,26.0]
[1755815996676,42.26,181.74,181.73,0.71]
[1755815997653,42.20074466,181.74,181.73,26.71]
[1755815998052,4.97409465,181.77,181.74,26.0]
[1755815998266,42.26,181.76,181.75,0.71]
[1755815998764,42.26,181.76,181.74,26.0]
[1755815999076,47.17409465,181.76,181.74,26.71]
[1755815999466,4.91409465,181.76,181.74,26.71]
[1755815999665,42.26,181.75,181.74,26.0]
[1755816000377,0.06,181.77,181.74,26.71]
[1755816000681,42.26,181.75,181.74,26.0]
[1755816000876,42.26,181.75,181.74,30.91409465]
[1755816001056,42.26,181.75,181.74,31.62409465]
[1755816001261,42.26,181.75,181.74,26.71]
[1755816002882,42.28,181.75,181.74,26.71]
[1755816004370,42.28,181.75,181.74,31.62409465]
[1755816005158,42.28,181.75,181.74,37.12646066]
[1755816005359,42.28,181.75,181.74,50.72205467]
[1755816005763,0.06,181.77,181.74,50.72205467]
[1755816005958,0.06,181.77,181.76,30.91409465]
[1755816006169,0.06,181.77,181.76,36.41585521]
[1755816006380,0.06,181.77,181.76,37.12585521]
[1755816009812,0.06,181.77,181.76,50.72144922]
[1755816009974,0.06,181.77,181.76,51.00577236]
[1755816010403,0.06,181.77,181.76,53.21102636]
[1755816010908,0.06,181.77,181.76,52.92670322]
[1755816011809,0.06,181.77,181.76,33.82934865]
[1755816012001,0.06,181.77,181.76,31.62409465]
[1755816012182,0.06,181.77,181.76,26.0]
[1755816012382,0.06,181.77,181.76,31.62409465]
[1755816012605,0.06,181.77,181.74,2.20574]
[1755816012606,4.97409465,181.77,181.74,0.71]
[1755816012901,0.06,181.77,181.76,26.0]
[1755816013195,0.06,181.77,181.76,50.72144922]
[1755816014104,0.06,181.77,181.76,51.00577236]
[1755816017383,0.06,181.79,181.76,51.00577236]
[1755816017593,0.06,181.79,181.78,18.7940118]
[1755816018105,0.06,181.79,181.78,19.5040118]
[1755816019175,0.06,181.81,181.8,13.87991715]
[1755816019374,0.06,181.87,181.82,13.59559401]
[1755816019684,0.06,181.87,181.82,13.87991715]
[1755816019889,0.34,181.87,181.82,19.21968866]
[1755816020073,0.06,181.87,181.81,4.91409465]
[1755816020280,0.28,181.85,181.81,44.50968866]
[1755816020508,0.28,181.85,181.82,4.91409465]
[1755816020696,0.34,181.87,181.82,5.62409465]
[1755816020999,0.34,181.87,181.82,4.91409465]
[1755816021000,0.06,181.87,181.82,4.91409465]
[1755816021204,4.97409465,181.87,181.82,30.91409465]
[1755816021391,0.28,181.86,181.82,30.91409465]
[1755816024920,0.28,181.86,181.82,31.62409465]
[1755816025492,0.28,181.86,181.81,7.70519207]
[1755816025692,0.06,181.87,181.82,5.62409465]
[1755816025887,0.34,181.87,181.82,5.62409465]
[1755816026094,0.06,181.87,181.82,24.71963366]